fUSD/lending_fUSD_20250215
["ID","MTS","AMOUNT","RATE_DAILY","PERIOD"]
[353167418,1739619057972,-500.0,0.00011451,2]
[353167419,1739619057982,-500.0,0.00011451,2]
[353167420,1739619057992,-1107.07,0.00011451,2]
[353167421,1739619058002,-819.55,0.00011451,2]
[353167422,1739619058011,-843.68,0.00011451,2]
[353167423,1739619058021,-326.91,0.00011451,2]
[353167424,1739619058033,-647.45,0.00011451,2]
[353167425,1739619058042,-500.0,0.00011451,2]
[353167426,1739619058051,-500.0,0.00011451,2]
[353167427,1739619058061,-473.98,0.00011451,2]
[353167428,1739619058071,-500.0,0.00011451,2]
[353167429,1739619058080,-630.02,0.00011451,2]
[353167430,1739619058092,-500.0,0.00011451,2]
[353167431,1739619058101,-580.45,0.00011451,2]
[353167432,1739619058110,-724.12,0.00011451,2]
[353167433,1739619058121,-548.96,0.00011451,2]
[353167434,1739619058130,-500.0,0.00011451,2]
[353167435,1739619058140,-854.44,0.00011451,2]
[353167436,1739619058150,-1881.76,0.00011451,2]
[353167437,1739619058159,-500.0,0.00011451,2]
[353167438,1739619058168,-371.96,0.00011451,2]
[353167439,1739619058178,-579.54,0.00011451,2]
[353167440,1739619058187,-2632.38,0.00011451,2]
[353167441,1739619058197,-500.0,0.00011451,2]
[353167442,1739619058206,-1314.99,0.00011451,2]
[353167443,1739619058215,-500.0,0.00011451,2]
[353167444,1739619058224,-989.59,0.00011451,2]
[353167445,1739619058233,-774.47,0.00011451,2]
[353167446,1739619058243,-500.0,0.00011451,2]
[353167447,1739619058252,-500.0,0.00011451,2]
[353167448,1739619058262,-1132.95,0.00011451,2]
[353167449,1739619058271,-500.0,0.00011451,2]
[353167450,1739619058282,-500.0,0.00011451,2]
[353167451,1739619058291,-537.7,0.00011451,2]
[353167452,1739619058300,-601.61,0.00011451,2]
[353167453,1739619058310,-714.88,0.00011451,2]
[353167454,1739619058320,-500.0,0.00011451,2]
[353167455,1739619058329,-500.0,0.00011451,2]
[353167456,1739619058338,-631.2,0.00011451,2]
[353167457,1739619058347,-500.0,0.00011451,2]
[353167458,1739619058358,-791.89,0.00011451,2]
[353167459,1739619058367,-500.0,0.00011451,2]
[353167460,1739619058376,-500.0,0.00011451,2]
[353167461,1739619058386,-500.0,0.00011451,2]
[353167462,1739619058395,-500.0,0.00011451,2]
[353167463,1739619058405,-833.76,0.00011451,2]
[353167464,1739619058414,-500.0,0.00011451,2]
[353167465,1739619058423,-500.0,0.00011451,2]
[353167466,1739619058433,-500.0,0.00011451,2]
[353167467,1739619058443,-500.0,0.00011451,2]
[353167468,1739619058452,-755.55,0.00011451,2]
[353167469,1739619058461,-500.0,0.00011451,2]
[353167470,1739619058471,-500.0,0.00011451,2]
[353167471,1739619058481,-500.0,0.00011451,2]
[353167472,1739619058490,-500.0,0.00011451,2]
[353167473,1739619058500,-500.0,0.00011451,2]
[353167474,1739619058509,-500.0,0.00011451,2]
[353167475,1739619058518,-739.88,0.00011451,2]
[353167476,1739619058530,-500.0,0.00011451,2]
[353167477,1739619058540,-500.0,0.00011451,2]
[353167478,1739619058549,-1185.97,0.00011451,2]
[353167479,1739619058558,-764.15,0.00011451,2]
[353167480,1739619058568,-418.06,0.00011451,2]
[353167481,1739619058578,-4057.71,0.00011451,2]
[353167482,1739619058587,-1015.48,0.00011451,2]
[353167483,1739619058596,-500.0,0.00011451,2]
[353167484,1739619058606,-500.0,0.00011452,2]
[353167485,1739619058615,-500.0,0.00011452,2]
[353167486,1739619058625,-500.0,0.00011452,2]
[353167487,1739619058634,-473.2,0.00011452,2]
[353167488,1739619058643,-500.0,0.00011452,2]
[353167489,1739619058652,-500.0,0.00011452,2]
[353167490,1739619058661,-500.0,0.00011452,2]
[353167491,1739619058670,-500.0,0.00011452,2]
[353167492,1739619058680,-500.0,0.00011452,2]
[353167493,1739619058689,-507.46,0.00011452,2]
[353167494,1739619058698,-500.0,0.00011473,2]
[353167495,1739619058707,-500.0,0.00011479,2]
[353167496,1739619058716,-500.0,0.00011479,2]
[353167497,1739619058725,-500.0,0.00011479,2]
[353167498,1739619058735,-500.0,0.00011479,2]
[353167499,1739619058744,-500.0,0.00011479,2]
[353167500,1739619058753,-500.0,0.00011479,2]
[353167501,1739619058762,-500.0,0.00011479,2]
[353167502,1739619058771,-500.0,0.00011479,2]
[353167503,1739619058780,-500.0,0.00011479,2]
[353167504,1739619058789,-500.0,0.00011479,2]
[353167505,1739619058798,-500.0,0.00011479,2]
[353167506,1739619058807,-500.0,0.00011479,2]
[353167507,1739619058816,-500.0,0.00011479,2]
[353167508,1739619058825,-500.0,0.00011479,2]
[353167509,1739619058834,-500.0,0.00011479,2]
[353167510,1739619058842,-500.0,0.00011479,2]
[353167511,1739619058852,-500.0,0.00011479,2]
[353167512,1739619058862,-500.0,0.00011479,2]
[353167513,1739619058870,-500.0,0.00011479,2]
[353167514,1739619058879,-500.0,0.00011479,2]
[353167515,1739619058888,-500.0,0.00011479,2]
[353167516,1739619058897,-500.0,0.00011479,2]
[353167517,1739619058906,-644.41,0.00011479,2]
[353167518,1739619058915,-500.0,0.00011479,2]
[353167519,1739619058923,-500.0,0.00011479,2]
[353167520,1739619058933,-500.0,0.00011479,2]
[353167521,1739619058941,-500.0,0.00011479,2]
[353167522,1739619058950,-500.0,0.00011479,2]
[353167523,1739619058959,-500.0,0.00011479,2]
[353167524,1739619058968,-644.59,0.00011479,2]
[353167525,1739619058977,-500.0,0.00011479,2]
[353167526,1739619058986,-500.0,0.00011479,2]
[353167527,1739619058995,-500.0,0.00011479,2]
[353167528,1739619059006,-500.0,0.00011479,2]
[353167529,1739619059015,-500.0,0.00011479,2]
[353167530,1739619059024,-500.0,0.00011479,2]
[353167531,1739619059033,-500.0,0.00011479,2]
[353167532,1739619059042,-500.0,0.00011479,2]
[353167533,1739619059051,-500.0,0.00011479,2]
[353167534,1739619059061,-500.0,0.00011479,2]
[353167535,1739619059070,-500.0,0.00011479,2]
[353167536,1739619059079,-500.0,0.00011479,2]
[353167537,1739619059089,-300.0,0.00011479,2]
[353167538,1739619059100,-71777.22295409,0.0001148,2]
[353167539,1739619059308,-2850.0,0.0001148,2]
[353167540,1739619153426,409.23,8.493e-05,2]
[353167544,1739619881753,-1349.4455,8.836e-05,2]
[353167545,1739619881778,-300.0,8.972e-05,2]
[353167546,1739619881802,-5000.0,8.973e-05,2]
[353167547,1739619881826,-350.5545,8.973e-05,2]
[353167548,1739620039845,-68.0959,8.973e-05,2]
[353167553,1739620186243,500.0,0.0002,120]
[353167554,1739620199362,500.0,0.0002,120]
[353167555,1739620227192,500.0,0.0002,120]
[353167676,1739620238204,-150.0,0.00010028,2]
[353167677,1739620238215,-701.70702,0.00010068,2]
[353167678,1739620238414,500.0,0.0002,120]
[353167694,1739620240351,-98.29298,0.00010068,2]
[353167695,1739620240361,-202.47301598,0.00010068,2]
[353167696,1739620240510,-277.49113233,0.00010068,2]
[353167702,1739620243591,-320.03585169,0.00010068,2]
[353167703,1739620243602,-373.56,0.00010137,2]
[353167704,1739620243611,-1000.0,0.0001019,2]
[353167705,1739620243620,-452.13,0.00010261,2]
[353167706,1739620243630,-521.56,0.00010308,2]
[353167707,1739620243639,-129.39696977,0.00010325,2]
[353167708,1739620243653,-20.60303023,0.00010325,2]
[353167709,1739620243662,-150.0,0.00010402,2]
[353167710,1739620243671,-150.0,0.00010643,2]
[353167711,1739620243680,-409.23,0.00010757,2]
[353167712,1739620243689,-150.0,0.00010807,2]
[353167713,1739620243698,-150.0,0.00010905,2]
[353167714,1739620243708,-150.0,0.00010932,2]
[353167715,1739620243717,-492.8,0.00011039,2]
[353167716,1739620243726,-272.12908563,0.00011039,2]
[353167717,1739620243734,-500.0,0.00011039,2]
[353167718,1739620243743,-54.66353149,0.00011039,2]
[353167725,1739620246293,-445.33646851,0.00011039,2]
[353167726,1739620246303,-486.68292805,0.00011039,2]
[353167727,1739620246313,-500.0,0.00011039,2]
[353167728,1739620246323,-500.0,0.00011039,2]
[353167729,1739620246332,-500.0,0.00011039,2]
[353167730,1739620246342,-500.0,0.00011039,2]
[353167731,1739620246352,-500.0,0.00011039,2]
[353167732,1739620246361,-500.0,0.00011039,2]
[353167733,1739620246371,-500.0,0.00011039,2]
[353167734,1739620246380,-500.0,0.00011039,2]
[353167735,1739620246389,-500.0,0.00011039,2]
[353167736,1739620246399,-500.0,0.00011039,2]
[353167737,1739620246408,-500.0,0.00011039,2]
[353167738,1739620246418,-500.0,0.00011039,2]
[353167739,1739620246427,-500.0,0.00011039,2]
[353167740,1739620246436,-500.0,0.00011039,2]
[353167741,1739620246446,-500.0,0.00011039,2]
[353167742,1739620246456,-500.0,0.00011039,2]
[353167743,1739620246466,-500.0,0.00011039,2]
[353167744,1739620246475,-495.05370095,0.00011039,2]
[353167745,1739620246488,-500.0,0.00011039,2]
[353167746,1739620246498,-500.0,0.00011039,2]
[353167747,1739620246507,-500.0,0.00011039,2]
[353167748,1739620246516,-500.0,0.00011039,2]
[353167749,1739620246527,-510.44,0.00011039,2]
[353167750,1739620246536,-601.83,0.00011039,2]
[353167751,1739620246545,-500.0,0.00011039,2]
[353167752,1739620246555,-500.0,0.00011039,2]
[353167753,1739620246565,-567.25,0.00011039,2]
[353167754,1739620246575,-500.0,0.00011039,2]
[353167755,1739620246585,-586.79,0.00011039,2]
[353167756,1739620246594,-621.44,0.00011039,2]
[353167757,1739620246604,-500.0,0.00011039,2]
[353167758,1739620246614,-500.0,0.00011039,2]
[353167759,1739620246623,-500.0,0.00011039,2]
[353167760,1739620246633,-500.0,0.00011039,2]
[353167761,1739620246642,-500.0,0.00011039,2]
[353167762,1739620246651,-500.0,0.00011039,2]
[353167763,1739620246661,-500.0,0.00011039,2]
[353167764,1739620246670,-500.0,0.00011039,2]
[353167765,1739620246679,-2741.35,0.00011039,2]
[353167766,1739620246688,-522.57,0.00011039,2]
[353167767,1739620246698,-500.0,0.00011039,2]
[353167768,1739620246707,-500.0,0.00011039,2]
[353167769,1739620246717,-500.0,0.00011039,2]
[353167770,1739620246727,-500.0,0.00011039,2]
[353167771,1739620246738,-500.0,0.00011039,2]
[353167772,1739620246747,-500.0,0.00011039,2]
[353167773,1739620246757,-500.0,0.00011039,2]
[353167774,1739620246768,-500.0,0.00011039,2]
[353167775,1739620246777,-500.0,0.00011039,2]
[353167776,1739620246786,-500.0,0.00011039,2]
[353167777,1739620246796,-500.0,0.00011039,2]
[353167778,1739620246805,-500.0,0.00011039,2]
[353167779,1739620246815,-500.0,0.00011039,2]
[353167780,1739620246824,-500.0,0.00011039,2]
[353167781,1739620246834,-500.0,0.00011039,2]
[353167782,1739620246844,-500.0,0.00011039,2]
[353167783,1739620246854,-543.59,0.00011039,2]
[353167784,1739620246863,-501.18,0.00011039,2]
[353167785,1739620246873,-500.0,0.00011039,2]
[353167786,1739620246882,-500.0,0.00011039,2]
[353167787,1739620246892,-500.0,0.00011039,2]
[353167788,1739620246902,-537.03,0.00011039,2]
[353167789,1739620246911,-368.59704091,0.00011039,2]
[353167790,1739620246921,-500.0,0.00011039,2]
[353167791,1739620246931,-500.0,0.00011039,2]
[353167792,1739620246940,-500.0,0.00011039,2]
[353167793,1739620246950,-528.66,0.00011039,2]
[353167794,1739620246959,-500.0,0.00011039,2]
[353167795,1739620246968,-500.0,0.00011039,2]
[353167796,1739620246978,-500.0,0.00011039,2]
[353167797,1739620246987,-500.0,0.00011039,2]
[353167798,1739620246997,-500.0,0.00011039,2]
[353167799,1739620247008,-500.0,0.00011039,2]
[353167800,1739620247017,-500.0,0.00011039,2]
[353167801,1739620247027,-500.0,0.00011039,2]
[353167802,1739620247037,-500.0,0.00011039,2]
[353167803,1739620247046,-500.0,0.00011039,2]
[353167804,1739620247056,-500.0,0.00011039,2]
[353167805,1739620247065,-500.0,0.00011039,2]
[353167806,1739620247075,-500.0,0.00011039,2]
[353167807,1739620247086,-500.0,0.00011039,2]
[353167808,1739620247096,-564.55,0.00011039,2]
[353167809,1739620247107,-500.0,0.00011039,2]
[353167810,1739620247118,-500.0,0.00011039,2]
[353167811,1739620247128,-632.56,0.00011039,2]
[353167812,1739620247138,-500.0,0.00011039,2]
[353167813,1739620247148,-500.0,0.00011039,2]
[353167814,1739620247158,-500.0,0.00011039,2]
[353167815,1739620247168,-500.0,0.00011039,2]
[353167816,1739620247177,-500.0,0.00011039,2]
[353167817,1739620247187,-500.0,0.00011039,2]
[353167818,1739620247197,-500.0,0.00011039,2]
[353167819,1739620247207,-500.0,0.00011039,2]
[353167820,1739620247216,-500.0,0.00011039,2]
[353167821,1739620247225,-500.0,0.00011039,2]
[353167822,1739620247235,-500.0,0.00011039,2]
[353167823,1739620247245,-500.0,0.00011039,2]
[353167824,1739620247254,-500.0,0.00011039,2]
[353167825,1739620247263,-542.6,0.00011039,2]
[353167826,1739620247273,-500.0,0.00011039,2]
[353167827,1739620247283,-500.0,0.00011039,2]
[353167828,1739620247292,-500.0,0.00011039,2]
[353167829,1739620247302,-500.0,0.00011039,2]
[353167830,1739620247311,-500.0,0.00011039,2]
[353167831,1739620247321,-500.0,0.00011039,2]
[353167832,1739620247331,-500.0,0.00011039,2]
[353167833,1739620247340,-500.0,0.00011039,2]
[353167834,1739620247349,-500.0,0.00011039,2]
[353167835,1739620247359,-500.0,0.00011039,2]
[353167836,1739620247368,-500.0,0.00011039,2]
[353167837,1739620247378,-500.0,0.00011039,2]
[353167838,1739620247388,-500.0,0.00011039,2]
[353167839,1739620247397,-500.0,0.00011039,2]
[353167840,1739620247407,-500.0,0.00011039,2]
[353167841,1739620247416,-500.0,0.00011039,2]
[353167842,1739620247426,-500.0,0.00011039,2]
[353167843,1739620247436,-500.0,0.00011039,2]
[353167844,1739620247445,-500.0,0.00011039,2]
[353167845,1739620247455,-500.0,0.00011039,2]
[353167846,1739620247464,-500.0,0.00011039,2]
[353167847,1739620247474,-500.0,0.00011039,2]
[353167848,1739620247487,-596.81,0.00011039,2]
[353167849,1739620247497,-183.80645641,0.00011039,2]
[353167850,1739620247507,-500.0,0.00011039,2]
[353167851,1739620247517,-500.0,0.00011039,2]
[353167852,1739620247527,-500.0,0.00011039,2]
[353167853,1739620247535,-629.32,0.00011039,2]
[353167854,1739620247545,-500.0,0.00011039,2]
[353167855,1739620247554,-500.0,0.00011039,2]
[353167856,1739620247565,-500.0,0.00011039,2]
[353167857,1739620247576,-500.0,0.00011039,2]
[353167858,1739620247585,-500.0,0.00011039,2]
[353167859,1739620247595,-500.0,0.00011039,2]
[353167860,1739620247605,-500.0,0.00011039,2]
[353167861,1739620247616,-500.0,0.00011039,2]
[353167862,1739620247626,-500.0,0.00011039,2]
[353167863,1739620247637,-500.0,0.00011039,2]
[353167864,1739620247647,-500.0,0.00011039,2]
[353167865,1739620247657,-500.0,0.00011039,2]
[353167866,1739620247667,-500.0,0.00011039,2]
[353167867,1739620247676,-500.0,0.00011039,2]
[353167868,1739620247685,-479.46,0.00011039,2]
[353167869,1739620247694,-500.0,0.00011039,2]
[353167870,1739620247703,-500.0,0.00011039,2]
[353167871,1739620247712,-500.0,0.00011039,2]
[353167872,1739620247722,-500.0,0.00011039,2]
[353167873,1739620247732,-500.0,0.00011039,2]
[353167874,1739620247742,-500.0,0.00011039,2]
[353167875,1739620247752,-500.0,0.00011039,2]
[353167876,1739620247761,-625.08,0.00011039,2]
[353167877,1739620247771,-500.0,0.00011039,2]
[353167878,1739620247780,-500.0,0.00011039,2]
[353167879,1739620247790,-500.0,0.00011039,2]
[353167880,1739620247799,-500.0,0.00011039,2]
[353167881,1739620247808,-500.0,0.00011039,2]
[353167882,1739620247817,-500.0,0.00011039,2]
[353167883,1739620247827,-500.0,0.00011039,2]
[353167884,1739620247836,-500.0,0.00011039,2]
[353167885,1739620247846,-500.0,0.00011039,2]
[353167886,1739620247856,-333.4569254,0.0001104,2]
[353167887,1739620247867,-500.0,0.0001104,2]
[353167888,1739620247877,-500.0,0.0001104,2]
[353167889,1739620247887,-500.0,0.0001104,2]
[353167890,1739620247896,-500.0,0.0001104,2]
[353167891,1739620247907,-500.0,0.0001104,2]
[353167892,1739620247917,-500.0,0.0001104,2]
[353167893,1739620247927,-500.0,0.0001104,2]
[353167894,1739620247937,-500.0,0.0001104,2]
[353167895,1739620247946,-500.0,0.0001104,2]
[353167896,1739620247957,-500.0,0.0001104,2]
[353167897,1739620247966,-500.0,0.0001104,2]
[353167898,1739620247977,-500.0,0.0001104,2]
[353167899,1739620247987,-500.0,0.0001104,2]
[353167900,1739620247997,-150.0,0.00011047,2]
[353167901,1739620248007,-349.41521819,0.00011061,2]
[353167902,1739620248017,-176.61465486,0.00011101,2]
[353167903,1739620248027,-316.62283017,0.00011104,2]
[353167904,1739620248038,-502.61826202,0.00011119,2]
[353167905,1739620248047,-500.0,0.00011119,2]
[353167906,1739620248058,-502.58202405,0.00011119,2]
[353167907,1739620248068,-500.0,0.00011119,2]
[353167908,1739620248078,-502.58654284,0.00011119,2]
[353167909,1739620248088,-262.19155527,0.00011119,2]
[353167910,1739620248099,-507.87,0.00011119,2]
[353167911,1739620248114,-500.0,0.00011119,2]
[353167912,1739620248125,-447.79704954,0.00011119,2]
[353167913,1739620248137,-500.0,0.00011119,2]
[353167914,1739620248147,-603.11,0.00011119,2]
[353167915,1739620248157,-500.0,0.00011119,2]
[353167916,1739620248168,-540.96,0.00011119,2]
[353167917,1739620248178,-500.0,0.00011119,2]
[353167918,1739620248188,-500.0,0.00011119,2]
[353167919,1739620248198,-500.0,0.00011119,2]
[353167920,1739620248209,-500.0,0.00011119,2]
[353167921,1739620248220,-500.0,0.00011119,2]
[353167922,1739620248231,-500.0,0.00011119,2]
[353167923,1739620248241,-500.0,0.00011119,2]
[353167924,1739620248251,-500.0,0.00011119,2]
[353167925,1739620248261,-500.0,0.00011119,2]
[353167926,1739620248270,-500.0,0.00011119,2]
[353167927,1739620248280,-500.0,0.00011119,2]
[353167928,1739620248291,-500.0,0.00011119,2]
[353167929,1739620248300,-500.0,0.00011119,2]
[353167930,1739620248310,-500.0,0.00011119,2]
[353167931,1739620248320,-543.38,0.00011119,2]
[353167932,1739620248330,-552.26,0.00011119,2]
[353167933,1739620248340,-500.0,0.00011119,2]
[353167934,1739620248350,-500.0,0.00011119,2]
[353167935,1739620248360,-500.0,0.00011119,2]
[353167936,1739620248369,-714.99,0.00011119,2]
[353167937,1739620248380,-500.0,0.00011119,2]
[353167938,1739620248391,-500.0,0.00011119,2]
[353167939,1739620248401,-500.0,0.00011119,2]
[353167940,1739620248410,-500.0,0.00011119,2]
[353167941,1739620248423,-500.0,0.00011119,2]
[353167942,1739620248434,-500.0,0.00011119,2]
[353167943,1739620248445,-500.0,0.00011119,2]
[353167944,1739620248455,-500.0,0.00011119,2]
[353167945,1739620248467,-500.0,0.00011119,2]
[353167946,1739620248477,-500.0,0.00011119,2]
[353167947,1739620248492,-583.49947935,0.00011119,2]
[353167948,1739620248503,-519.58,0.00011119,2]
[353167949,1739620248514,-1974.28,0.00011119,2]
[353167950,1739620248523,-500.0,0.00011119,2]
[353167951,1739620248533,-527.76,0.00011119,2]
[353167952,1739620248543,-500.0,0.00011119,2]
[353167953,1739620248555,-500.0,0.00011119,2]
[353167954,1739620248568,-500.0,0.00011119,2]
[353167955,1739620248579,-500.0,0.00011119,2]
[353167956,1739620248589,-500.0,0.00011119,2]
[353167957,1739620248601,-500.0,0.00011119,2]
[353167958,1739620248611,-500.0,0.00011119,2]
[353167959,1739620248622,-500.0,0.00011119,2]
[353167960,1739620248632,-500.0,0.00011119,2]
[353167961,1739620248643,-500.0,0.00011119,2]
[353167962,1739620248653,-500.0,0.00011119,2]
[353167963,1739620248663,-649.98,0.00011119,2]
[353167964,1739620248674,-500.0,0.00011119,2]
[353167965,1739620248684,-622.49,0.00011119,2]
[353167966,1739620248695,-500.0,0.00011119,2]
[353167967,1739620248706,-500.0,0.00011119,2]
[353167968,1739620248716,-705.31,0.00011119,2]
[353167969,1739620248727,-500.0,0.00011119,2]
[353167970,1739620248737,-500.0,0.00011119,2]
[353167971,1739620248747,-574.8,0.00011119,2]
[353167972,1739620248757,-500.0,0.00011119,2]
[353167973,1739620248766,-500.0,0.00011119,2]
[353167974,1739620248775,-489.80722599,0.00011119,2]
[353167975,1739620248784,-520.81,0.00011119,2]
[353167976,1739620248793,-500.0,0.00011119,2]
[353167977,1739620248802,-500.0,0.00011119,2]
[353167978,1739620248812,-500.0,0.00011119,2]
[353167979,1739620248822,-500.0,0.00011119,2]
[353167980,1739620248832,-589.93,0.00011119,2]
[353167981,1739620248843,-500.0,0.00011119,2]
[353167982,1739620248854,-506.40449697,0.00011119,2]
[353167983,1739620248864,-666.12,0.00011119,2]
[353167984,1739620248874,-500.0,0.00011119,2]
[353167985,1739620248885,-500.0,0.00011119,2]
[353167986,1739620248896,-500.0,0.00011119,2]
[353167987,1739620248907,-500.0,0.00011119,2]
[353167988,1739620248917,-728.43,0.00011119,2]
[353167989,1739620248929,-500.0,0.00011119,2]
[353167990,1739620248940,-500.0,0.00011119,2]
[353167991,1739620248951,-500.0,0.00011119,2]
[353167992,1739620248963,-500.0,0.00011119,2]
[353167993,1739620248974,-566.66,0.00011119,2]
[353167994,1739620248984,-500.0,0.00011119,2]
[353167995,1739620248995,-500.0,0.00011119,2]
[353167996,1739620249006,-595.88086342,0.00011119,2]
[353167997,1739620249017,-644.51,0.00011119,2]
[353167998,1739620249027,-884.49,0.00011119,2]
[353167999,1739620249039,-500.0,0.00011119,2]
[353168000,1739620249049,-500.0,0.00011119,2]
[353168001,1739620249060,-500.0,0.00011119,2]
[353168002,1739620249070,-500.0,0.00011119,2]
[353168003,1739620249079,-500.0,0.00011119,2]
[353168004,1739620249089,-500.0,0.00011119,2]
[353168005,1739620249099,-500.0,0.00011119,2]
[353168006,1739620249110,-896.53,0.00011119,2]
[353168007,1739620249120,-500.0,0.00011119,2]
[353168008,1739620249130,-538.23,0.00011119,2]
[353168009,1739620249141,-500.0,0.00011119,2]
[353168010,1739620249151,-500.0,0.00011119,2]
[353168011,1739620249160,-510.03916518,0.00011119,2]
[353168012,1739620249170,-500.0,0.00011119,2]
[353168013,1739620249181,-500.0,0.00011119,2]
[353168014,1739620249191,-500.0,0.00011119,2]
[353168015,1739620249203,-500.0,0.00011119,2]
[353168016,1739620249213,-500.0,0.00011119,2]
[353168017,1739620249223,-500.0,0.00011119,2]
[353168018,1739620249234,-500.0,0.00011119,2]
[353168019,1739620249244,-500.0,0.00011119,2]
[353168020,1739620249254,-151.932213,0.00011119,2]
[353168021,1739620249264,-500.0,0.00011119,2]
[353168022,1739620249274,-500.0,0.00011119,2]
[353168023,1739620249285,-500.0,0.00011119,2]
[353168024,1739620249295,-500.0,0.00011119,2]
[353168025,1739620249305,-500.0,0.00011119,2]
[353168026,1739620249314,-500.0,0.00011119,2]
[353168027,1739620249325,-500.0,0.00011119,2]
[353168028,1739620249336,-626.26,0.00011119,2]
[353168029,1739620249347,-156.427096,0.00011119,2]
[353168030,1739620249358,-500.0,0.00011119,2]
[353168031,1739620249369,-500.0,0.00011119,2]
[353168032,1739620249379,-500.0,0.00011119,2]
[353168033,1739620249388,-500.0,0.00011119,2]
[353168034,1739620249399,-500.0,0.00011119,2]
[353168035,1739620249410,-500.0,0.00011119,2]
[353168036,1739620249420,-500.0,0.00011119,2]
[353168037,1739620249430,-541.21,0.00011119,2]
[353168038,1739620249440,-500.0,0.00011119,2]
[353168039,1739620249450,-500.0,0.00011119,2]
[353168040,1739620249459,-500.0,0.00011119,2]
[353168041,1739620249469,-455.75696775,0.00011119,2]
[353168042,1739620249503,-44.24303225,0.00011119,2]
[353168043,1739620249513,-475.87849307,0.00011119,2]
[353168044,1739620251519,500.0,0.0002,120]
[353168045,1739620262068,500.0,0.0002,120]
[353168046,1739620273691,500.0,0.0002,120]
[353168048,1739620278956,368.3,8.392e-05,2]
[353168050,1739620284288,500.0,0.0002,120]
[353168051,1739620295178,500.0,0.0002,120]
[353168052,1739620307171,500.0,0.0002,120]
[353168053,1739620319643,500.0,0.0002,120]
[353168054,1739620408762,638.0,0.0002,120]
[353168055,1739620420462,306.0,0.0002,120]
[353168056,1739620427204,500.0,0.0002,120]
[353168057,1739620883630,3085.52289563,0.00020687,120]
[353168058,1739620917941,571.0,0.0002,120]
[353168060,1739621191171,145202.91639026,0.00020688,120]
[353168062,1739621275220,349.88,8.357e-05,2]
[353168066,1739621431678,-451.27454765,0.00010002,2]
[353168067,1739621431688,-900.0,0.00010068,2]
[353168068,1739621431697,-900.0,0.00010068,2]
[353168069,1739621431707,-150.0,0.00010102,2]
[353168070,1739621431716,-451.27454764,0.00010134,2]
[353168071,1739621431725,-164.2,0.00010137,2]
[353168072,1739621431735,-3924.7,0.00010234,2]
[353168073,1739621431744,-1000.0,0.00010273,2]
[353168074,1739621431754,-300.0,0.0001062,2]
[353168075,1739621431763,-349.88,0.00010621,2]
[353168076,1739621431773,-150.0,0.00011002,2]
[353168077,1739621431782,-190.06195887,0.00011019,2]